bitfinex-derivatives/quotes_ETHF0:USTF0_20250422
["timestamp","ask_amount","ask_price","bid_price","bid_amount"]
[1745328460552,13.61433234,1632.7,1632.6,0.00916617]
[1745328460752,7.63033234,1632.7,1632.6,0.00916617]
[1745328461159,1.30833234,1632.7,1632.6,0.00916617]
[1745328463668,6.30833234,1632.7,1632.6,0.00916617]
[1745328465070,1.30833234,1632.7,1632.6,0.00916617]
[1745328466865,1.30833234,1632.7,1632.6,3.72167617]
[1745328467060,0.08339234,1632.7,1632.6,6.92947617]
[1745328467259,1.30833234,1632.7,1632.6,3.21696617]
[1745328467566,1.30833234,1632.7,1632.6,0.00916617]
[1745328467868,4.51613234,1632.7,1632.6,0.00916617]
[1745328468570,1.30833234,1632.7,1632.6,0.00916617]
[1745328469463,4.51613234,1632.7,1632.6,0.00916617]
[1745328470271,9.51613234,1632.7,1632.6,6.17e-06]
[1745328471270,22.26074153,1632.7,1632.6,6.17e-06]
[1745328472565,22.36617497,1632.7,1632.6,6.17e-06]
[1745328473266,1.22569,1631.7,1631.6,2.5029]
[1745328473469,1.22569,1631.7,1631.6,4.9835]
[1745328474065,1.30908234,1631.7,1631.6,4.9835]
[1745328474672,1.22576,1631.6,1631.5,3.21391085]
[1745328474972,8.39655234,1631.6,1631.5,8.5e-07]
[1745328475271,14.71855234,1631.6,1631.5,8.5e-07]
[1745328475467,10.14055234,1631.6,1631.5,8.5e-07]
[1745328476174,3.81855234,1631.6,1631.5,8.5e-07]
[1745328478769,1.30915234,1631.6,1631.5,8.5e-07]
[1745328478970,1.30915234,1631.6,1631.5,5.18370085]
[1745328479670,0.08339234,1631.6,1631.5,11.40954085]
[1745328479867,1.30915234,1631.6,1631.5,14.76270085]
[1745328480377,0.00916617,1631.8,1631.7,1.22569]
[1745328480573,0.00916617,1631.8,1631.7,4.43349]
[1745328480780,1.22547,1632.0,1631.9,1.22554]
[1745328480973,1.21850485,1632.0,1631.9,7.7868]
[1745328481272,1.21850485,1632.0,1631.9,12.7868]
[1745328481477,1.22546,1632.0,1631.9,14.01234]
[1745328481772,3.06294,1632.4,1632.1,1.22537]
[1745328482080,1.22524,1632.3,1632.2,2.4819]
[1745328482280,1.22524,1632.3,1632.2,7.0609]
[1745328486382,1.22524,1632.3,1632.2,2.4819]
[1745328488285,4.43304,1632.3,1632.2,2.4819]
[1745328488591,1.22524,1632.3,1632.2,2.4819]
[1745328488985,4.43304,1632.3,1632.2,2.4819]
[1745328489488,1.22524,1632.3,1632.2,2.4819]
[1745328490398,1.22524,1632.3,1632.2,5.6897]
[1745328490689,1.22524,1632.3,1632.2,2.4819]
[1745328493795,0.00916617,1632.4,1632.2,5.6897]
[1745328493989,1.22524,1632.3,1632.2,3.2078]
[1745328494195,1.22524,1632.3,1632.2,7.8798]
[1745328494994,1.22524,1632.3,1632.2,4.672]
[1745328495693,1.22524,1632.3,1632.2,9.10511]
[1745328495895,1.23435617,1632.4,1632.2,7.8798]
[1745328496197,1.23435617,1632.4,1632.2,9.10506]
[1745328496396,1.23435617,1632.4,1632.3,1.22524]
[1745328496595,1.23435617,1632.4,1632.2,9.10505]
[1745328496899,0.00916617,1632.4,1632.3,1.22524]
[1745328497195,1.23438617,1632.4,1632.3,1.22524]
[1745328497395,1.22524,1632.3,1632.2,9.10506]
[1745328497992,1.22524,1632.3,1632.2,7.8798]
[1745328499192,1.22524,1632.3,1632.2,4.672]
[1745328499394,1.22539,1632.1,1632.0,5.871]
[1745328499599,1.22539,1632.1,1632.0,10.543]
[1745328499991,1.22539,1632.1,1632.0,11.76846]
[1745328500194,1.22539,1632.1,1632.0,10.543]
[1745328500396,1.22539,1632.1,1632.0,5.871]
[1745328500596,1.22539,1632.1,1632.0,7.3352]
[1745328502004,1.22529,1632.3,1632.1,1.22537]
[1745328502202,7.68236617,1632.4,1632.0,11.76842]
[1745328502494,6.12657,1632.2,1630.7,12.18369945]
[1745328502703,1.22576,1631.6,1631.1,5.96531]
[1745328503003,0.0069643,1631.5,1631.2,1.22604]
[1745328503196,0.0069643,1631.5,1631.3,1.22594]
[1745328503395,0.0069643,1631.3,1631.2,5.89701]
[1745328503992,0.00919483,1631.4,1631.3,1.2190157]
[1745328504395,0.00919483,1631.4,1631.3,4.4268157]
[1745328504596,1.2255,1632.0,1631.7,1.22562]
[1745328504798,4.43319,1632.1,1632.0,0.00696515]
[1745328505298,1.21864485,1631.8,1631.7,4.672]
[1745328505495,1.22572,1631.7,1631.5,5.89778]
[1745328505798,1.22567,1631.8,1631.5,10.466]
[1745328506006,1.22567,1631.8,1631.6,3.81196]
[1745328506202,0.00919483,1631.9,1631.7,2.5218]
[1745328506401,1.22561,1631.8,1631.7,2.5218]
[1745328506707,1.23479483,1631.9,1631.7,3.74749]
[1745328506896,1.23479483,1631.9,1631.8,2.5218]
[1745328507105,3.21002968,1631.9,1631.3,3.2078]
[1745328507304,1.22576,1631.6,1631.5,3.74065485]
[1745328507603,1.22576,1631.6,1631.5,2.51483485]
[1745328509406,1.22587,1631.5,1631.3,4.43373]
[1745328509800,3.69882,1631.6,1631.4,1.22591]
[1745328510103,1.22584,1631.5,1631.3,4.43374]
[1745328510399,1.22591,1631.4,1631.3,3.2078]
[1745328510602,1.22599,1631.3,1631.2,7.1699]
[1745328510803,1.22606,1631.2,1631.1,0.00919483]
[1745328511007,7.02436,1631.2,1631.1,0.00919483]
[1745328512107,3.81656,1631.2,1631.1,0.00919483]
[1745328513102,3.81656,1631.2,1630.7,3.2078]
[1745328513103,1.22634,1630.9,1630.7,3.2078]
[1745328513308,5.7302,1631.1,1630.8,8.54502]
[1745328513503,1.22628,1631.0,1630.8,8.54502]
[1745328513704,2.5224,1631.1,1630.9,1.22629]
[1745328513906,1.22621,1631.0,1630.9,2.6457]
[1745328514103,3.7486,1631.1,1630.9,2.6457]
[1745328514302,1.22621,1631.0,1630.9,2.6457]
[1745328514502,3.75779483,1631.1,1630.9,2.6457]
[1745328515009,1.23534483,1631.1,1630.9,2.6457]
[1745328515304,0.08350278,1631.0,1630.9,7.07973]
[1745328515505,0.08350278,1631.0,1630.9,9.77163]
[1745328515709,0.08350278,1631.0,1630.9,14.77163]
[1745328519711,6.27207,1631.7,1630.9,19.67673]
[1745328519911,1.22587,1631.5,1631.4,1.22585]
[1745328520111,1.22587,1631.5,1631.4,3.72765]
[1745328520414,1.22591,1631.4,1631.3,4.659]
[1745328520615,1.22591,1631.4,1631.3,8.38679]
[1745328521410,0.00919483,1631.5,1631.4,1.22591]
[1745328521612,0.00919483,1631.5,1631.4,6.91971]
[1745328521916,0.00919483,1631.5,1631.4,9.52581]
[1745328522910,6.47209,1631.9,1631.5,3.0646]
[1745328523121,2.6347,1631.9,1631.8,1.22561]
[1745328523314,1.22539,1632.1,1631.9,0.00696515]
[1745328523516,3.2078,1632.2,1631.9,1.23243515]
[1745328523817,1.2254,1632.1,1632.0,1.22544]
[1745328524018,4.43534968,1632.2,1632.0,3.71144]
[1745328524212,3.21002968,1632.2,1632.1,1.22539]
[1745328524419,3.21002968,1632.2,1632.1,3.70659]
[1745328524612,3.21002968,1632.2,1632.1,2.4812]
[1745328524813,3.21002968,1632.2,1631.9,4.66819483]
[1745328525022,4.43326,1632.0,1631.9,0.00919483]
[1745328525213,3.06385,1631.9,1631.5,2.4812]
[1745328525521,1.22572,1631.7,1631.5,7.13323485]
[1745328525723,2.5788,1631.6,1631.5,4.659]
[1745328526023,2.5788,1631.6,1631.5,5.88484]
[1745328527319,3.80456,1631.6,1631.5,4.659]
[1745328527522,1.22584,1631.5,1631.4,0.00919483]
[1745328527723,6.54044,1631.5,1631.4,0.00919483]
[1745328528129,6.54044,1631.5,1631.4,1.23510483]
[1745328528130,5.3146,1631.5,1631.4,1.23510483]
[1745328528516,5.3146,1631.5,1631.4,0.00919483]
[1745328529025,5.3146,1631.5,1631.4,1.23510483]
[1745328529415,5.3146,1631.5,1631.4,0.00919483]
[1745328529619,6.54044,1631.5,1631.4,0.00919483]
[1745328529923,5.3146,1631.5,1631.4,0.00919483]
[1745328530424,6.54044,1631.5,1631.4,0.00919483]
[1745328531127,9.74824,1631.5,1631.4,0.00919483]
[1745328531324,6.54044,1631.5,1631.4,0.00919483]
[1745328531625,9.74824,1631.5,1631.4,0.00919483]
[1745328532217,14.74824,1631.5,1631.4,0.00919483]
[1745328532523,9.74824,1631.5,1631.4,0.00919483]
[1745328532824,14.74824,1631.5,1631.4,0.00919483]
[1745328533027,16.58702,1631.5,1631.0,99.38818]
[1745328533219,1.22607,1631.2,1631.0,98.162]
[1745328533419,3.06479,1631.4,1631.0,5.88515]
[1745328533722,2.6847,1631.1,1631.0,7.8668]
[1745328533918,3.91084,1631.1,1631.0,7.1425]
[1745328535621,3.91084,1631.1,1630.9,0.00919483]
[1745328535622,1.22621,1631.0,1630.9,0.00919483]
[1745328535826,6.56431,1631.0,1630.9,0.00919483]
[1745328537723,1.22621,1631.0,1630.9,1.23548483]
[1745328537931,1.22621,1631.0,1630.9,6.52818483]
[1745328538128,1.22621,1631.0,1630.9,9.24708483]
[1745328538330,1.22621,1631.0,1630.9,2.67139483]
[1745328538828,1.22621,1631.0,1630.9,3.89768483]
[1745328540030,1.2262,1631.1,1631.0,1.22621]
[1745328540228,3.07452483,1631.2,1631.1,1.22614]
[1745328540229,1.23529483,1631.2,1631.1,1.22614]
[1745328540630,1.23529483,1631.2,1631.1,3.79394]
[1745328540832,1.23529483,1631.2,1631.1,2.5678]
[1745328541327,1.23529483,1631.2,1631.1,3.79394]
[1745328541932,0.00919483,1631.2,1631.1,3.79394]
[1745328542427,0.00919483,1631.2,1631.1,8.90514]
[1745328543030,1.23525483,1631.2,1631.1,2.5678]
[1745328544037,2.39589483,1631.2,1631.1,3.79394]
[1745328544630,0.00919483,1631.2,1631.1,3.79394]
[1745328545732,2.3867,1631.5,1631.4,1.22591]
[1745328546323,2.3867,1631.5,1631.4,3.63301]
[1745328546720,2.5258,1631.6,1631.5,1.22584]
[1745328547024,4.94859483,1631.6,1631.5,1.22584]
[1745328547825,6.17437483,1631.6,1631.4,3.63296]
[1745328548027,1.22584,1631.5,1631.4,2.4071]
[1745328548325,2.4136,1631.5,1631.4,3.63301]
[1745328548834,3.63944,1631.5,1631.4,3.63301]
[1745328549439,1.22591,1631.4,1631.3,4.66]
[1745328549738,2.4808,1631.4,1631.3,5.88599]
[1745328549921,3.70671,1631.4,1631.3,5.88599]
[1745328550223,2.4808,1631.4,1631.3,8.50389]
[1745328550420,1.22587,1631.5,1631.4,1.22591]
[1745328550632,2.4808,1631.5,1631.4,1.22591]
[1745328550833,3.76080483,1631.6,1631.5,1.22584]
[1745328550834,1.23500483,1631.6,1631.5,1.22584]
[1745328551028,0.00919483,1631.6,1631.5,3.84374]
[1745328551228,1.23495483,1631.6,1631.5,3.84374]
[1745328551427,0.00919483,1631.6,1631.5,3.84374]
[1745328553035,1.23495483,1631.6,1631.5,3.84374]
[1745328553227,0.00919483,1631.6,1631.5,3.84374]
[1745328553429,1.23495483,1631.6,1631.5,3.84374]
[1745328553739,0.00919483,1631.6,1631.5,3.84374]
[1745328554733,1.23495483,1631.6,1631.5,3.84374]
[1745328555933,0.00919483,1631.6,1631.5,3.84374]
[1745328557635,1.23495483,1631.6,1631.5,3.84374]
[1745328557830,0.00919483,1631.6,1631.5,3.84374]
[1745328559138,1.23495483,1631.6,1631.5,3.84374]
[1745328559442,0.00919483,1631.6,1631.5,3.84374]
[1745328562941,4.83e-06,1631.6,1631.5,9.64577472]
[1745328563137,18.41009119,1632.3,1632.2,1.22531]
[1745328563338,1.21837485,1632.2,1632.1,4.575]
[1745328563645,1.2255,1632.0,1631.9,1.22546]
[1745328563841,1.22544,1632.1,1632.0,1.2254]
[1745328564042,3.80884,1632.1,1632.0,1.2254]
[1745328564544,1.22546,1632.0,1631.9,8.35299483]
[1745328564744,3.80886,1632.0,1631.9,1.23473483]
[1745328564945,8.80886,1632.0,1631.9,0.00919483]
[1745328565244,8.80886,1632.0,1631.9,1.23473483]
[1745328565445,8.80886,1632.0,1631.9,0.00919483]
[1745328565945,12.01666,1632.0,1631.9,0.00919483]
[1745328569349,1.22569,1631.7,1631.6,5.80076]
[1745328569644,1.22569,1631.7,1631.6,4.56803485]
[1745328570147,3.56529,1631.7,1631.6,5.79379485]
[1745328570549,1.22576,1631.6,1631.5,0.00919483]
[1745328570738,1.22576,1631.6,1631.5,1.23503483]
[1745328570739,3.56536,1631.6,1631.5,1.23503483]
[1745328570943,6.77316,1631.6,1631.5,0.00919483]
[1745328571745,6.77316,1631.6,1631.5,1.23503483]
[1745328571947,6.77316,1631.6,1631.5,0.00919483]
[1745328572647,1.22599,1631.3,1631.2,98.069]
[1745328572843,1.22599,1631.3,1631.2,4.575]
[1745328573349,3.80069,1631.3,1631.2,4.575]
[1745328573941,3.80069,1631.3,1631.0,1.22621]
[1745328574254,5.1481,1631.5,1631.2,3.06516]
[1745328574555,0.00919483,1631.5,1631.4,1.22591]
[1745328574946,1.23506483,1631.5,1631.3,8.37196]
[1745328575149,0.00919483,1631.5,1631.3,7.146]
[1745328575451,1.23503483,1631.5,1631.3,7.146]
[1745328575651,3.80973483,1631.5,1631.3,8.37196]
[1745328576755,1.22591,1631.4,1631.3,4.575]
[1745328576956,6.99231,1631.4,1631.3,4.575]
[1745328577252,12.01191,1631.4,1631.3,4.575]
[1745328578451,8.80411,1631.4,1631.3,4.575]
[1745328579048,1.22606,1631.2,1631.1,4.56719483]
[1745328579253,1.30956277,1631.2,1631.1,4.56719483]
[1745328579745,1.30956277,1631.2,1631.1,6.97339483]
[1745328580451,1.30956277,1631.2,1631.1,8.19953483]
[1745328580651,1.30956277,1631.2,1631.1,6.97339483]
[1745328580851,1.30956277,1631.2,1631.1,8.19953483]
[1745328581047,0.08350277,1631.2,1631.1,8.19953483]
[1745328581262,1.30956277,1631.2,1631.1,11.40733483]
[1745328581959,0.08350277,1631.2,1631.1,13.86323483]
[1745328582256,1.30956277,1631.2,1631.1,13.86323483]
[1745328583752,0.08350277,1631.2,1631.1,13.86323483]
[1745328583959,0.08350277,1631.2,1631.1,18.86323483]
[1745328584359,0.08350277,1631.2,1631.1,13.86323483]
[1745328584952,1.30956277,1631.2,1631.1,13.86323483]
[1745328586752,1.30956277,1631.2,1631.1,3.21699483]
[1745328586958,1.30956277,1631.2,1631.1,1.23533483]
[1745328587157,0.08350277,1631.2,1631.1,6.92413483]
[1745328587461,0.08350277,1631.2,1631.1,9.46253483]
[1745328587853,1.30956277,1631.2,1631.1,9.46253483]
[1745328588052,1.30956277,1631.2,1631.1,5.69799483]
[1745328588251,1.22614,1631.1,1631.0,6.322]
[1745328588453,8.67764,1631.1,1631.0,6.322]
[1745328588655,13.67764,1631.1,1631.0,6.322]
[1745328589148,1.22636,1630.8,1630.7,2.4244]
[1745328589350,0.08350277,1630.8,1630.7,6.9824]
[1745328589556,0.08350277,1630.8,1630.7,8.20884]
[1745328590056,1.30986277,1630.8,1630.7,13.3044]
[1745328590261,0.08350277,1630.8,1630.7,14.53084]
[1745328590857,6.1763,1631.1,1630.9,1.22622]
[1745328591062,6.17624,1631.1,1631.0,5.78421]
[1745328591862,4.9501,1631.1,1631.0,5.78421]
[1745328592161,4.9501,1631.1,1631.0,12.10621]
[1745328592354,2.5014,1631.2,1631.1,1.22614]
[1745328592556,8.0295,1631.3,1631.1,3.78514]
[1745328592756,10.3892,1631.3,1631.1,3.78514]
[1745328592957,8.40739,1631.3,1631.2,2.559]
[1745328593358,7.1814,1631.3,1631.2,2.559]
[1745328594062,7.1814,1631.3,1631.0,8.28847]
[1745328594269,2.4172,1631.2,1631.1,2.4025]
[1745328595063,3.64326,1631.2,1631.1,2.4025]
[1745328595363,1.22614,1631.1,1631.0,10.88]
[1745328595564,2.4172,1631.1,1631.0,10.88]
[1745328596063,2.4172,1631.1,1631.0,13.2825]
[1745328596860,3.64334,1631.1,1631.0,13.2825]
[1745328597253,11.85114,1631.1,1631.0,6.322]
[1745328598149,1.22629,1630.9,1630.8,4.559]
[1745328598762,2.3752,1630.9,1630.8,7.0852]
[1745328598961,3.60149,1630.9,1630.8,7.0852]
[1745328599458,2.5043,1631.0,1630.9,1.22629]
[1745328599663,3.73051,1631.0,1630.9,3.75249]
[1745328599965,1.22614,1631.1,1630.9,3.75241]
[1745328600256,6.81154,1631.3,1631.0,2.5262]
[1745328600463,6.10546,1631.4,1631.2,1.22601]
[1745328600649,6.10546,1631.4,1631.3,3.77589]
[1745328600650,2.5043,1631.4,1631.3,3.77589]
[1745328600851,0.00919483,1631.5,1631.4,1.22591]
[1745328601056,1.22562,1631.8,1631.7,1.22569]
[1745328601254,1.22562,1631.8,1631.4,13.91511]
[1745328601255,1.22561,1631.8,1631.6,3.2078]
[1745328601457,1.22584,1631.5,1631.3,5.78493]
[1745328601761,3.2078,1631.8,1631.2,8.685]
[1745328601762,4.43371,1631.4,1631.2,8.685]
[1745328601959,1.22599,1631.3,1631.2,7.54806]
[1745328602165,3.2078,1631.6,1631.2,8.8719]
[1745328602460,1.22599,1631.3,1631.2,6.31280517]
[1745328602859,6.30199,1631.3,1631.2,6.31280517]
[1745328603258,1.22606,1631.2,1631.1,0.00919483]
[1745328603460,5.076,1631.3,1631.1,5.79429483]
[1745328603657,1.22606,1631.2,1631.1,0.00919483]
[1745328603863,9.40966,1631.2,1631.1,0.00919483]
[1745328604055,1.22651,1630.6,1630.5,6.322]
[1745328604256,3.2078,1630.6,1630.1,2.4249]
[1745328604457,3.2078,1630.4,1630.1,2.4249]
[1745328604652,1.22681,1630.2,1630.0,4.559]
[1745328604856,2.4469,1630.1,1630.0,5.78596]
[1745328605062,4.43452,1630.4,1630.1,1.22687]
[1745328605270,1.22696,1630.0,1629.9,8.09716595]
[1745328605463,3.2078,1630.0,1629.9,8.09716595]
[1745328605765,0.00919483,1630.2,1630.1,1.22689]
[1745328606266,1.22661,1630.5,1630.0,13.18161]
[1745328606459,2.3712,1630.4,1630.1,3.66083]
[1745328606765,2.3712,1630.4,1630.2,8.2198]
[1745328606962,10.00123373,1630.6,1630.2,6.993]
[1745328607165,2.3712,1630.6,1630.5,1.22659]
[1745328607362,0.00919483,1630.6,1630.5,8.99339]
[1745328607565,0.00919483,1630.6,1630.5,4.559]
[1745328607755,2.38039483,1630.6,1630.5,5.78559]
[1745328607960,2.38039483,1630.6,1630.5,4.559]
[1745328608364,0.00919483,1630.6,1630.5,5.78559]
[1745328608773,2.38039483,1630.6,1630.5,4.559]
[1745328609062,0.00919483,1630.6,1630.5,8.21959]
[1745328609364,5.7516,1630.9,1630.6,1.22649]
[1745328609569,5.7516,1630.9,1630.5,13.315]
[1745328609570,4.7707,1630.8,1630.5,13.315]
[1745328610060,4.7707,1630.8,1630.6,3.62067]
[1745328610260,2.3767,1630.7,1630.6,2.3942]
[1745328610868,2.3767,1630.7,1630.6,1.22651]
[1745328611064,5.5845,1630.7,1630.5,10.881]
[1745328611365,10.5845,1630.7,1630.5,6.322]
[1745328611568,3.60321,1630.6,1630.5,6.322]
[1745328611972,8.60321,1630.6,1630.5,6.322]
[1745328612162,1.2266,1630.5,1630.2,4.66]
[1745328612367,10.4284,1630.5,1630.2,5.88681]
[1745328612561,10.4284,1630.5,1630.2,4.66]
[1745328612770,2.3458,1630.4,1630.2,4.66]
[1745328613164,2.3458,1630.4,1630.2,12.20881]
[1745328613469,2.3458,1630.4,1630.2,10.982]
[1745328613666,3.57253,1630.4,1630.2,10.982]
[1745328613873,2.3458,1630.4,1630.2,10.982]
[1745328614071,8.0517,1630.5,1630.2,13.4129]
[1745328614262,4.8439,1630.5,1630.2,6.322]
[1745328614467,9.95227599,1630.4,1630.2,6.322]
[1745328614773,2.3458,1630.3,1630.2,6.322]
[1745328615571,3.57254,1630.3,1630.2,6.322]
[1745328615873,15.54978759,1630.3,1630.2,6.30361034]
[1745328616365,1.2269,1630.1,1629.9,0.00703201]
[1745328616567,2.3477,1630.0,1629.9,0.00703201]
[1745328616767,5.5555,1630.0,1629.9,0.00703201]
[1745328616968,6.78246,1630.0,1629.9,0.00703201]
[1745328617171,6.78246,1630.0,1629.9,6.32903201]
[1745328617572,11.78246,1630.0,1629.9,4.96188201]
[1745328617768,1.2273,1629.6,1629.2,2.5385]
[1745328617965,3.2078,1629.4,1629.2,2.5385]
[1745328618276,3.2078,1629.4,1629.2,8.8605]
[1745328618466,3.2078,1629.4,1629.2,13.8605]
[1745328618673,2.3909,1629.8,1629.3,1.22746]
[1745328618976,0.00919483,1629.5,1629.4,7.2112]
[1745328619278,103.34829002,1629.5,1628.4,3.2078]
[1745328619475,1.22817,1628.4,1628.3,1.5314]
[1745328619675,1.22825,1628.3,1628.1,12.18369945]
[1745328619974,3.06998,1628.7,1628.5,1.22804]
[1745328619975,3.2078,1628.7,1628.5,1.22804]
[1745328620166,3.2078,1628.7,1628.6,4.892]
[1745328620364,3.2078,1628.7,1628.5,6.322]
[1745328620564,1.22794,1628.7,1628.6,7.45887547]
[1745328620776,1.22794,1628.7,1628.6,2.56687547]
[1745328621073,15.08937452,1628.7,1628.6,0.01667547]
[1745328621271,15.08937452,1628.7,1628.5,6.33119482]
[1745328621272,1.2097157,1628.6,1628.5,6.33119482]
[1745328621575,9.1497157,1628.6,1628.5,4.71150482]
[1745328621778,21.12181333,1628.6,1628.5,2.85378482]
[1745328621970,21.12181333,1628.6,1628.5,3.65e-06]
[1745328622176,19.91209763,1628.6,1627.9,2.3813]
[1745328622368,3.2078,1628.3,1628.0,4.893]
[1745328622674,6.99680047,1628.2,1628.1,5.60740248]
[1745328622873,0.00919483,1628.8,1628.1,11.04818248]
[1745328623174,0.00919483,1628.8,1628.7,4.43574]
[1745328623472,0.00919483,1628.8,1628.7,6.14124248]
[1745328623772,0.00919483,1628.8,1628.7,10.89244248]
[1745328623969,0.00919483,1628.8,1628.7,9.66450248]
[1745328624172,0.00919483,1628.8,1628.7,6.34030248]
[1745328624473,2.57289483,1628.8,1628.7,6.34030248]
[1745328624674,3.2078,1629.2,1628.7,14.54810248]
[1745328624863,3.2078,1629.2,1628.9,3.2078]
[1745328625069,3.2078,1629.2,1629.0,7.5106]
[1745328625270,2.3955,1629.2,1629.0,8.73829]
[1745328625469,2.3955,1629.2,1629.0,7.5106]
[1745328625671,2.3955,1629.2,1629.1,0.01830248]
[1745328625870,2.3955,1629.2,1629.1,0.03659805]
[1745328626175,3.62307,1629.2,1629.1,0.03659805]
[1745328626471,3.62307,1629.2,1629.1,5.19189362]
[1745328626671,2.3955,1629.2,1629.1,5.19189362]
[1745328626875,4.44453483,1629.3,1629.1,5.19189362]
[1745328626876,3.21699483,1629.3,1629.1,5.19189362]
[1745328627075,4.44448483,1629.3,1629.2,0.07318919]
[1745328627374,3.21699483,1629.3,1629.2,0.07318919]
[1745328627674,3.21699483,1629.3,1629.2,0.09148476]
[1745328627870,5.61819483,1629.3,1629.2,0.09148476]
[1745328628275,3.21699483,1629.3,1629.2,7.6535684]
[1745328628473,3.2078,1630.1,1629.3,3.06874]
[1745328628777,3.2078,1630.2,1629.8,3.06779]
[1745328629077,3.2078,1630.2,1630.1,1.22689]
[1745328629279,6.84296884,1630.4,1630.3,1.22674]
[1745328629469,12.18293602,1630.5,1630.4,1.22666]
[1745328629674,9.32124615,1630.5,1630.4,3.74826]
[1745328629969,6.37742615,1630.5,1630.4,8.74826]
[1745328630169,12.91426001,1630.7,1630.6,1.22651]
[1745328630373,23.17323225,1631.4,1630.9,3.06571]
[1745328630575,19.96543225,1631.4,1631.3,1.22599]
[1745328630773,19.96543225,1631.4,1631.3,6.36299]
[1745328631370,18.68392225,1631.4,1631.3,11.4669884]
[1745328631575,3.2078,1632.2,1631.5,3.06452]
[1745328631775,2.49123485,1632.1,1631.5,3.2078]
[1745328631976,4.43343,1631.8,1631.6,5.137]
[1745328632173,3.2078,1631.8,1631.5,6.322]
[1745328632373,4.3295616,1631.6,1631.5,6.322]
[1745328632772,3.1038016,1631.6,1631.5,6.322]
[1745328633377,3.1038016,1631.6,1631.5,7.54784]
[1745328633578,2.50739483,1631.7,1631.6,1.22576]
[1745328633876,0.95611483,1631.7,1631.6,4.43356]
[1745328634069,0.95611483,1631.7,1631.6,11.88916]
[1745328634273,3.2078,1632.3,1632.2,1.22531]
[1745328634475,3.20083485,1632.3,1632.2,5.135]
[1745328634980,15.22306688,1632.3,1631.7,5.135]
[1745328635276,3.2078,1631.8,1631.7,5.135]
[1745328635481,3.2078,1632.0,1631.8,1.22558]
[1745328635684,3.2078,1632.2,1631.8,2.4556]
[1745328635880,3.2078,1631.9,1631.8,2.4556]
[1745328636081,6.91067063,1632.1,1631.8,3.69040483]
[1745328636285,3.2078,1632.0,1631.8,2.46479483]
[1745328636476,3.21699483,1632.2,1632.1,1.22539]
[1745328636676,3.21699483,1632.2,1632.1,6.35839]
[1745328637184,3.21699483,1632.2,1632.1,5.133]
[1745328638385,14.8497382,1632.2,1632.1,5.133]
[1745328639181,14.8497382,1632.2,1631.8,0.00919483]
[1745328639380,3.2078,1632.0,1631.8,0.00919483]
[1745328639586,1.22564,1631.8,1631.4,1.22589]
[1745328639784,0.00696515,1631.4,1631.3,5.132]
[1745328639977,0.00696515,1631.4,1631.3,9.56579]
[1745328640286,5.15e-06,1631.4,1631.3,14.56579]
[1745328640675,3.2078,1631.9,1631.8,1.22561]
[1745328640872,3.20084,1631.9,1631.8,6.35761]
[1745328641377,3.20084,1631.9,1631.8,5.132]
[1745328641682,3.20084,1631.9,1631.8,6.35761]
[1745328641983,2.5574,1632.1,1631.9,1.22549]
[1745328642186,0.00919483,1632.2,1631.9,1.22549]
[1745328642187,0.00919483,1632.2,1631.9,2.4918]
[1745328642387,3.2078,1632.1,1631.9,2.4918]
[1745328642984,3.2078,1632.1,1631.9,3.71731]
[1745328643175,3.2078,1632.1,1631.9,10.03931]
[1745328643378,3.2078,1632.1,1631.9,10.03933]
[1745328643681,3.2078,1632.1,1632.0,1.22546]
[1745328643876,0.00919483,1632.2,1632.1,1.22539]
[1745328644083,3.2078,1632.6,1632.1,5.131]
[1745328644387,4.43286,1632.6,1632.2,3.67119]
[1745328644683,4.43296,1632.4,1632.3,5.131]
[1745328645080,4.43296,1632.4,1632.2,2.4459]
[1745328645283,1.22519,1632.4,1632.3,5.131]
[1745328645486,3.2078,1632.4,1632.3,6.35624]
[1745328645782,0.00919483,1632.5,1632.4,1.22516]
[1745328645983,0.00919483,1632.5,1632.4,3.70336]
[1745328646289,0.00919483,1632.5,1632.4,108.52636]
[1745328646485,0.00919483,1632.5,1632.4,107.3012]
[1745328646692,0.00919483,1632.5,1632.4,108.52636]
[1745328647180,0.00919483,1632.5,1632.4,107.3012]
[1745328647388,0.00919483,1632.5,1632.4,103.52636]
[1745328647584,0.00919483,1632.5,1632.4,108.52636]
[1745328647982,0.00919483,1632.5,1632.4,103.52636]
[1745328648691,1.23428483,1632.5,1632.4,99.823]
[1745328648880,4.44208483,1632.5,1632.4,104.952]
[1745328651591,0.00919483,1632.5,1632.4,106.17716]
[1745328652292,0.00919483,1632.5,1632.4,104.952]
[1745328652478,2.50989483,1632.5,1632.4,104.952]
[1745328652883,3.73498483,1632.5,1632.4,104.952]
[1745328653390,3.73498483,1632.5,1632.4,98.63]
[1745328653886,2.50989483,1632.5,1632.4,98.63]
[1745328654090,2.50989483,1632.5,1632.3,5.254]
[1745328654396,4.43296,1632.4,1632.3,5.254]
[1745328654689,1.22524,1632.3,1632.2,0.00919483]
[1745328654891,16.17938121,1632.4,1632.3,5.254]
[1745328655287,3.2078,1632.4,1632.3,5.254]
[1745328655493,3.2078,1632.4,1632.3,8.99974]
[1745328655887,1.22524,1632.3,1632.2,0.00919483]
[1745328656082,1.22524,1632.3,1632.2,5.26319483]
[1745328656280,6.22524,1632.3,1632.2,5.26319483]
[1745328657591,1.22524,1632.3,1632.2,5.26319483]
[1745328657988,3.2078,1632.4,1632.2,5.26319483]
[1745328658393,7.61696935,1632.3,1632.2,0.00919483]
[1745328658585,1.22524,1632.3,1632.2,0.00919483]
[1745328660190,6.22524,1632.3,1632.2,0.00919483]
[1745328660493,3.2078,1632.2,1631.2,96.0121]
[1745328660692,1.22614,1631.1,1631.0,6.79]
[1745328661087,3.21476515,1631.2,1631.1,1.22614]
[1745328661088,0.00696515,1631.2,1631.1,1.22614]
[1745328661395,0.00919483,1631.3,1631.1,2.3266]
[1745328661582,0.00919483,1631.3,1631.2,1.22606]